fUST/lending_fUST_20240316
["ID","MTS","AMOUNT","RATE_DAILY","PERIOD"]
[319100062,1710564640269,-153.0,0.00019014,2]
[319100063,1710564640279,-153.0,0.00019014,2]
[319100064,1710564640288,-153.0,0.00019014,2]
[319100065,1710564640297,-153.0,0.00019014,2]
[319100066,1710564640306,-201.1026187,0.00019014,2]
[319100067,1710564640316,-854.1078142,0.00019016,2]
[319100069,1710564640325,-1745.0177212,0.00019016,2]
[319100071,1710564640335,-155.5098992,0.00019017,2]
[319100072,1710564640345,-156.06497011,0.00019017,2]
[319100073,1710564640355,-155.90967153,0.00019017,2]
[319100074,1710564640365,-15344.61135425,0.00019017,2]
[319100075,1710564640374,-292.07142898,0.00019017,2]
[319100076,1710564640383,-156.6344398,0.00019017,2]
[319100078,1710564640392,-1540.55549798,0.00019017,2]
[319100080,1710564640401,-155.34180864,0.00019017,2]
[319100081,1710564640410,-199727.45758677,0.00019018,60]
[319100083,1710564641443,-427.63664462,0.00019018,60]
[319100084,1710564641455,-2236.21874578,0.00019018,60]
[319100085,1710564641467,-403.5335302,0.00019018,60]
[319100433,1710564646890,-2740.50796074,0.00019018,60]
[319102947,1710565832248,-1688.49231011,0.00017986,2]
[319102948,1710565832258,-3522.96191835,0.00018916,2]
[319102949,1710565832267,-172.51401418,0.00018916,2]
[319102950,1710565832278,-111884.54438376,0.00019016,60]
[319102998,1710565838262,-4404.61283998,0.00019015,2]
[319103472,1710565843136,-50001.00410286,0.00018916,2]
[319103824,1710565846331,-1689.63125553,0.00018916,2]
[319108392,1710567038488,-1710.79661155,0.00017218,2]
[319108393,1710567038498,-3520.81322256,0.00017317,2]
[319108394,1710567038508,-200.352672,0.00017318,2]
[319108395,1710567038517,-200.352672,0.00017669,2]
[319108396,1710567038526,-1165.2238495,0.00017699,2]
[319108397,1710567038536,-423.8125866,0.00017702,2]
[319108398,1710567038545,-620.35720915,0.00018258,2]
[319108399,1710567038555,-201.1026187,0.000187,2]
[319108400,1710567038564,-153.0,0.000187,2]
[319108402,1710567038574,-153.0,0.000187,2]
[319108404,1710567038583,-153.0,0.000187,2]
[319108406,1710567038592,-3066.88328347,0.00018725,2]
[319108408,1710567038603,-153.0,0.000188,2]
[319108410,1710567038613,-153.0,0.000188,2]
[319108412,1710567038622,-153.0,0.000188,2]
[319108414,1710567038632,-767.81999584,0.000188,2]
[319108416,1710567038640,-609.51109779,0.00018911,8]
[319108529,1710567047344,-821.42541702,0.00018911,8]
[319108530,1710567047354,-1499.22999306,0.00018913,9]
[319108531,1710567047364,-13355.77729043,0.00018916,2]
[319108532,1710567047374,-2073.05229131,0.00018916,2]
[319108533,1710567047384,-306.0,0.00019,2]
[319108534,1710567047394,-1850.0,0.00019,3]
[319108535,1710567047403,-7966.16283253,0.00019,2]
[319108536,1710567047413,-7865.20898088,0.00019014,60]
[319108595,1710567878468,5025.0,0.0001395,2]
[319110367,1710568246667,-381.8787319,0.00018156,2]
[319110369,1710568246677,-518.08197293,0.00018157,2]
[319110371,1710568246687,-381.8787319,0.0001816,2]
[319110373,1710568246696,-739.62505969,0.00018535,2]
[319110375,1710568246706,-3577.80246104,0.00018824,2]
[319114856,1710569432729,-155.09926353,0.0001673,2]
[319114858,1710569432738,-155.10081553,0.00016731,2]
[319114860,1710569432749,-10509.0239435,0.00017685,2]
[319114862,1710569432759,-7478.59267405,0.00017777,2]
[319114864,1710569432769,-200.352672,0.00017793,2]
[319114866,1710569432778,-1600.1924962,0.00018824,2]
[319114868,1710569432787,-313.54750707,0.00018824,2]
[319114870,1710569432798,-155.53103624,0.00018824,2]
[319114872,1710569432808,-1997.26340256,0.0001888,2]
[319114874,1710569432817,-374.95687234,0.00018914,2]
[319114876,1710569432826,-7949.85812778,0.00019,2]
[319114878,1710569432835,-2599.63259754,0.00019011,2]
[319114880,1710569432845,-1084.7826277,0.00019011,2]
[319114882,1710569432855,-3223.14939885,0.00019011,2]
[319114884,1710569432866,-1959.03394693,0.00019011,2]
[319114886,1710569432875,-155.45712289,0.00019011,2]
[319114888,1710569432884,-459.16415353,0.00019012,2]
[319114890,1710569432894,-393.77555558,0.00019012,2]
[319114892,1710569432902,-185.32753043,0.00019012,2]
[319114894,1710569432911,-3500.87999219,0.00019012,2]
[319114896,1710569432920,-43898.42241754,0.00019014,60]
[319126900,1710570494116,3584.1605754,0.00025,120]
[319126940,1710570631911,-155.10081553,0.00015588,2]
[319126942,1710570631920,-155.10081553,0.00015589,2]
[319126944,1710570631930,-177.0,0.00016273,2]
[319126945,1710570631939,-6204.2335005,0.00017756,2]
[319126947,1710570631948,-200.352672,0.00017792,2]
[319126949,1710570631956,-340.40238146,0.00018913,2]
[319126950,1710570631966,-300.0,0.00019009,2]
[319126952,1710570631975,-3343.0595287,0.0001901,15]
[319126954,1710570631983,-3223.52670201,0.00019012,2]
[319126956,1710570631993,-62831.33658919,0.00019013,60]
[319127097,1710570642926,-14616.3023552,0.00018822,2]
[319127099,1710570642936,-5385.18391178,0.00019013,60]
[319127144,1710570646096,-5238.8248399,0.00019013,60]
[319127145,1710570646108,-342.36884967,0.00019013,60]
[319127200,1710571832152,-155.10081553,0.00016691,2]
[319127202,1710571832162,-187.1131388,0.00016692,2]
[319127203,1710571832172,-187.1131388,0.00016861,2]
[319127205,1710571832181,-300.0,0.00016961,2]
[319127207,1710571832191,-14416.867594,0.00016962,2]
[319127209,1710571832200,-5500.20092067,0.00017352,2]
[319127473,1710571840279,-152.76549734,0.00017179,2]
[319127475,1710571840288,-9772.96020813,0.00017352,2]
[319127477,1710571840298,-34318.40253377,0.00018,2]
[319127479,1710571840307,-620.05387,0.00018257,2]
[319127481,1710571840317,-1323.83680089,0.000188,5]
[319127483,1710571840326,-426.03398648,0.00018912,2]
[319127485,1710571840336,-184.71260849,0.0001901,2]
[319127487,1710571840345,-381.78579349,0.0001901,2]
[319127490,1710571840355,-403.22305228,0.00019011,2]
[319127492,1710571840365,-152416.22564913,0.00019012,60]
[319127784,1710571843152,-15901.18040232,0.00019012,60]
[319136850,1710573038438,-155.07598723,0.00015944,2]
[319136851,1710573038448,-155.07753877,0.00015945,2]
[319136852,1710573038458,-176.0,0.00016271,2]
[319136853,1710573038467,-540.0029163,0.00017765,2]
[319136854,1710573038476,-1309.4720432,0.0001779,2]
[319136855,1710573038485,-300.0,0.00018128,2]
[319136856,1710573038494,-4334.3300694,0.00018129,2]
[319137104,1710573040405,-503.01188397,0.00018129,2]
[319137369,1710573043409,-1675.26151784,0.00018129,2]
[319138357,1710574238618,-518.08197293,0.00014835,2]
[319138358,1710574238628,-3000.0,0.00014836,2]
[319138359,1710574238638,-155.10081553,0.00015252,2]
[319138360,1710574238647,-155.10081553,0.00015406,2]
[319138361,1710574238657,-739.62505969,0.00015412,2]
[319138362,1710574238666,-300.0,0.00015831,2]
[319138363,1710574238675,-180.223423,0.00015832,2]
[319138364,1710574238684,-8030.5294638,0.00015832,2]
[319138365,1710574238694,-689.5187144,0.00015832,2]
[319138366,1710574238704,-2635.5689611,0.00015944,2]
[319138367,1710574238713,-6728.82976209,0.00015959,2]
[319138368,1710574238726,-9981.13565598,0.00015959,2]
[319138369,1710574238737,-4680.21871089,0.00015959,2]
[319138757,1710574246648,-2367.99053514,0.00015799,2]
[319139867,1710575364903,1607.97410816,0.0001395,2]
[319139868,1710575368571,1351.40559135,0.0001395,2]
[319139869,1710575368607,1248.95407317,0.0001395,2]
[319139870,1710575377381,170.99144379,0.0001395,2]
[319139904,1710575432760,-457.71466524,0.00013951,2]
[319139906,1710575432770,-1408.9290938,0.00016971,2]
[319139908,1710575432779,-616.2424708,0.00017145,2]
[319139910,1710575432788,-180.223423,0.00017145,2]
[319139912,1710575432797,-4691.45581229,0.0001762,2]
[319139921,1710575432880,-801.93334011,0.0001762,2]
[319139923,1710575432890,-3577.80246104,0.00017948,2]
[319139925,1710575432899,-674.19937604,0.00018117,2]
[319139927,1710575432908,-350.8126133,0.000182,2]
[319139929,1710575432917,-402.0528906,0.000182,2]
[319139931,1710575432926,-153.0,0.000182,2]
[319139933,1710575432935,-396.1161805,0.000183,2]
[319139938,1710575433059,-1471.656766,0.00018624,2]
[319139939,1710575433069,-1761.921681,0.00018624,2]
[319139940,1710575433078,-1471.656766,0.00018857,2]
[319139941,1710575433088,-1761.921681,0.00018857,2]
[319139942,1710575433097,-2468.32530398,0.0001891,2]
[319139943,1710575433109,-4657.17340727,0.00018912,2]
[319139944,1710575433118,-4594.03559762,0.00019,2]
[319139945,1710575433127,-155.10081553,0.00019,2]
[319139946,1710575433137,-1587.0,0.00019,7]
[319139947,1710575433147,-155.29721935,0.00019008,2]
[319139948,1710575433156,-618.43106565,0.00019008,2]
[319139949,1710575433165,-747.98016048,0.00019008,2]
[319139950,1710575433175,-204.89534336,0.00019008,2]
[319139951,1710575433185,-156.60994407,0.00019008,2]
[319139952,1710575433195,-1607.51480522,0.00019008,2]
[319139953,1710575433204,-2598.90553056,0.00019008,2]
[319139954,1710575433213,-170.88942587,0.00019008,2]
[319139955,1710575433223,-155.14739002,0.00019009,2]
[319139956,1710575433232,-269.87860546,0.00019009,2]
[319139958,1710575433241,-1043.34017955,0.00019009,2]
[319139959,1710575433250,-1475.78282209,0.00019009,2]
[319139960,1710575433259,-1406.95388948,0.00019009,2]
[319139961,1710575433271,-1868.86632821,0.00019009,2]
[319139963,1710575433281,-332.51439538,0.00019009,2]
[319139965,1710575433290,-381.8787319,0.00019009,2]
[319139967,1710575433300,-3441.79069967,0.00019009,2]
[319139969,1710575433309,-155.35448426,0.0001901,2]
[319139971,1710575433318,-375.94081648,0.0001901,2]
[319139973,1710575433327,-185.3522149,0.0001901,2]
[319139975,1710575433336,-1279.02367752,0.0001901,2]
[319139977,1710575433345,-155.53373226,0.0001901,2]
[319139979,1710575433354,-270.05743461,0.0001901,2]
[319139981,1710575433363,-1083.91604346,0.0001901,2]
[319139983,1710575433372,-526.41582734,0.0001901,2]
[319139985,1710575433381,-592.06240715,0.0001901,2]
[319139987,1710575433390,-185.0379358,0.0001901,2]
[319139989,1710575433398,-64904.39755909,0.0001901,60]
[319140051,1710575438827,-575.391,0.0001901,60]
[319140529,1710575443764,-2753.98798765,0.0001901,60]
[319140789,1710575446870,-927.20229121,0.0001901,60]
[319149556,1710576631911,-977.60845899,0.00018309,2]
[319149762,1710576640056,-299.80142373,0.00018309,2]
[319149764,1710576640066,-194.22665885,0.00018333,2]
[319149766,1710576640075,-1894.77719297,0.0001887,2]
[319150067,1710576643080,-299.80142373,0.00018126,2]
[319150069,1710576643091,-4726.30423778,0.0001887,2]
[319150539,1710576647760,-474.17740683,0.0001887,2]
[319160405,1710577832092,-1081.84484016,0.00016912,2]
[319160407,1710577832102,-1205.08142707,0.00016912,2]
[319160410,1710577832116,-1359.35315391,0.00016912,2]
[319160479,1710577838168,-565.90470413,0.00016912,2]
[319160480,1710577838227,-17.5412643,0.00016912,2]
[319160481,1710577838236,-2600.35966452,0.00016913,2]
[319160482,1710577838246,-518.08197293,0.00016913,2]
[319160483,1710577838255,-1563.39060429,0.00016914,2]
[319160484,1710577838264,-300.0,0.00017092,2]
[319160485,1710577838273,-1648.91647103,0.00017093,2]
[319160522,1710577841591,-565.22309176,0.00017093,2]
[319160523,1710577841602,-594.29,0.00017093,2]
[319160524,1710577841615,-2394.23363091,0.00017093,2]
[319160525,1710577841624,-91.44832925,0.0001887,2]
[319160526,1710577841633,-3786.88029017,0.00018909,2]
[319160561,1710577846279,-48804.41917334,0.00018909,2]
[319160563,1710577846294,-1050.34548557,0.00018909,2]
[319160599,1710579032259,-1081.84484016,0.00017629,2]
[319160600,1710579032270,-3431.50690938,0.00017629,2]
[319160601,1710579032280,-2377.91837146,0.0001763,2]
[319160602,1710579032289,-3501.96135875,0.00017807,2]
[319160603,1710579032298,-3147.88054941,0.00017808,2]
[319160604,1710579032308,-221.5167,0.00017818,2]
[319160605,1710579032317,-307538.99561568,0.00018118,2]
[319160613,1710579038285,-319.88118119,0.00018118,2]
[319160621,1710579038395,-1784.96130203,0.00018118,2]
[319160623,1710579038407,-437.16,0.00018118,2]
[319160704,1710579043426,-4111.0396656,0.00018118,2]
[319164575,1710580238559,-184.76844647,0.00017969,2]
[319164576,1710580238568,-331.56393228,0.0001797,2]
[319164577,1710580238578,-1002.77482716,0.00017971,2]
[319164578,1710580238591,-79.070013,0.00017971,2]
[319164579,1710580238600,-554.8534059,0.00017972,2]
[319164580,1710580238609,-776.21520038,0.00018018,2]
[319164581,1710580238619,-352.29619188,0.00018018,2]
[319164582,1710580238628,-350.69153834,0.00018018,2]
[319164583,1710580238638,-1000.0,0.00018018,2]
[319164584,1710580238647,-335.0236505,0.00018115,2]
[319164585,1710580238659,-1344.18357441,0.00018115,2]
[319164586,1710580238670,-406.7119379,0.00018116,2]
[319164587,1710580238680,-155.53373226,0.00018116,2]
[319164588,1710580238689,-270.05743461,0.00018116,2]
[319164589,1710580238704,-28.01706509,0.00018116,2]
[319164613,1710580240503,-564.04534206,0.00018116,2]
[319164614,1710580240513,-155.35448426,0.00018116,2]
[319164615,1710580240522,-320.1351906,0.00018117,2]
[319164616,1710580240534,-32.16100123,0.00018117,2]
[319164617,1710580240543,-526.41582734,0.00018117,2]
[319164618,1710580240553,-3393.08220839,0.00018118,2]
[319164619,1710580240564,-51484.13193137,0.00018118,2]
[319164621,1710580240575,-329.7518327,0.00018118,2]
[319164622,1710580240588,-3899.22932425,0.00018118,2]
[319164639,1710580243518,-155.15049598,0.00017789,2]
[319164641,1710580243527,-9455.84950743,0.00018118,2]
[319164647,1710580243580,-1894.49568397,0.00018118,2]
[319164648,1710580243594,-2126.64513703,0.00018118,2]
[319164649,1710580243605,-764.76670726,0.00018118,2]
[319164651,1710580243616,-3927.78601698,0.00018118,2]
[319164664,1710580246605,-435481.11501116,0.00018118,2]
[319164665,1710580246617,-17907.14145121,0.00018118,2]
[319164692,1710581432591,-3431.50690938,0.00016839,2]
[319164693,1710581432601,-331.56393228,0.0001684,2]
[319164694,1710581432611,-3224.45045373,0.0001684,2]
[319164695,1710581432620,-381.8787319,0.00016841,2]
[319164696,1710581432630,-369.9022706,0.00016842,2]
[319164697,1710581432639,-3606.32918563,0.00016844,2]
[319164698,1710581432648,-2490.13193463,0.00018,2]
[319164699,1710581432658,-302.13291311,0.00018018,2]
[319164700,1710581432667,-1000.0,0.00018018,2]
[319164702,1710581432677,-418.36794435,0.00018116,2]
[319164704,1710581432686,-65708.70341722,0.00018118,2]
[319164705,1710581432697,-149786.59877368,0.00018118,2]
[319164787,1710581438910,-12569.74607248,0.00018118,2]
[319164865,1710581446729,-1612.43959999,0.00017937,2]
[319164868,1710581446786,-451.25,0.00017937,2]
[319164869,1710581446797,-327.70101,0.00017937,2]
[319164873,1710582430557,3100.05431162,0.00017428,5]
[319164874,1710582430942,3100.05431162,0.00017428,5]
[319164875,1710582431331,3100.05431162,0.00017428,5]
[319164876,1710582431781,3100.05431162,0.00017428,5]
[319164877,1710582432141,3100.05431162,0.00017428,5]
[319164878,1710582432516,3100.05431162,0.00017428,5]
[319164879,1710582432884,3100.05431162,0.00017428,5]
[319164880,1710582433288,3100.05431162,0.00017428,5]
[319164881,1710582433682,3100.05431162,0.00017428,5]
[319164882,1710582434082,3100.05331162,0.00017428,5]
[319165020,1710582637982,-2600.35966452,0.00014346,2]
[319165021,1710582637992,-1569.93031636,0.00014347,2]
[319165022,1710582638001,-308.25189217,0.00014348,2]
[319165023,1710582638010,-331.56393228,0.00014349,2]
[319165024,1710582638019,-221.38695509,0.00014349,2]
[319165025,1710582638029,-3054.98258429,0.0001435,2]
[319165120,1710583104425,5545.44022867,0.00013901,2]
[319165121,1710583112230,5545.44022867,0.00013901,2]
[319165122,1710583121253,909.11954266,0.00013901,2]
[319165123,1710583121286,3373.58635937,0.00013901,2]
[319165124,1710583158496,16347.1366932,0.00013238,2]
[319165125,1710583176087,2073.05229131,0.00013901,2]
[319165126,1710583187975,687.38054693,0.00013901,2]
[319165127,1710583191270,19037.03776848,0.00013901,2]
[319165128,1710583192098,2073.05229131,0.00013901,2]
[319165129,1710583201889,686.23818038,0.00013901,2]
[319165130,1710583209256,19037.03776848,0.00013901,2]
[319165131,1710583210092,2079.38450568,0.00013901,2]
[319165132,1710583231257,7779.62828558,0.00013901,2]
[319165183,1710583832001,-160.59923582,0.00014003,2]
[319165185,1710583832011,-1953.33408347,0.00014003,2]
[319165187,1710583832019,-1549.34228033,0.00014004,2]
[319165193,1710583832066,-1675.1081734,0.00014004,2]
[319165195,1710583832075,-301.76336706,0.00014005,2]
[319165197,1710583832084,-15272.02320787,0.00014005,2]
[319165199,1710583832094,-3431.50690938,0.00014006,2]
[319165201,1710583832103,-300.0,0.00014007,2]
[319165203,1710583832113,-1466.93151036,0.0001401,2]
[319165205,1710583832122,-1600.1924962,0.00014207,2]
[319165207,1710583832131,-155.53103624,0.0001435,2]
[319165209,1710583832139,-155.16447434,0.0001435,2]
[319165211,1710583832148,-269.39073036,0.00017425,2]
[319165213,1710583832157,-155.02325349,0.00017426,2]
[319165214,1710583832166,-313.54750707,0.00017428,2]
[319165216,1710583832175,-153.0,0.000176,2]
[319165218,1710583832184,-154.2448027,0.0001789,2]
[319165220,1710583832193,-153.0,0.000179,2]
[319165222,1710583832202,-153.0,0.000179,2]
[319165224,1710583832211,-153.0,0.000179,2]
[319165226,1710583832220,-197.3408572,0.000179,2]
[319165228,1710583832229,-153.0,0.000179,2]
[319165230,1710583832239,-153.0,0.000179,2]
[319165232,1710583832248,-153.0,0.000179,2]
[319165235,1710583832257,-153.0,0.000179,2]
[319165237,1710583832267,-5082.65550209,0.00017932,2]
[319165239,1710583832276,-765.82237552,0.00017933,2]
[319165241,1710583832285,-13887.11323257,0.0001799,2]
[319165243,1710583832295,-306.8604924,0.00018027,2]
[319165244,1710583832305,-187.47843617,0.00018064,2]
[319165246,1710583832314,-59700.15245196,0.00018118,2]
[319165472,1710583840096,-463.70990709,0.00018118,2]
[319165479,1710583840152,-465.94299996,0.00018118,2]
[319165481,1710583840163,-587.835,0.00018118,2]
[319165484,1710583840174,-477.01569024,0.00018118,2]
[319165486,1710583840185,-252.48215748,0.00018118,2]
[319165488,1710583840198,-281.87795268,0.00018118,2]
[319165490,1710583840209,-252.64346002,0.00018118,2]
[319165493,1710583840221,-258.59687393,0.00018118,2]
[319165795,1710583843077,-46191.03377987,0.00018118,2]
[319165798,1710583843086,-306.0,0.00018164,2]
[319165801,1710583843096,-620.72019089,0.00018238,2]
[319165802,1710583843106,-9630.54715333,0.00018385,5]
[319165804,1710583843116,-181.683257,0.00018514,2]
[319165806,1710583843129,-414.178488,0.00018514,2]
[319165808,1710583843138,-162.014705,0.00018514,2]
[319165810,1710583843147,-407.743806,0.00018514,2]
[319165812,1710583843157,-168.767988,0.00018514,2]
[319165814,1710583843167,-163.637561,0.00018514,2]
[319165816,1710583843176,-181.683257,0.00018745,2]
[319165818,1710583843185,-414.178488,0.00018745,2]
[319165820,1710583843194,-162.014705,0.00018745,2]
[319165822,1710583843203,-407.743806,0.00018745,2]
[319165824,1710583843212,-5102.94970374,0.00018789,2]
[319165826,1710583843225,-388.47999996,0.00018789,2]
[319165829,1710583843236,-5158.00190453,0.00018789,2]
[319170946,1710585033248,-184.76844647,0.00017048,2]
[319170947,1710585033257,-160.59923582,0.00017048,2]
[319170948,1710585033266,-5873.01830669,0.00017049,2]
[319170949,1710585033274,-1953.33408347,0.00017149,2]
[319170950,1710585033283,-3431.50690938,0.00017149,2]
[319170951,1710585033292,-338.80243722,0.0001715,2]
[319170952,1710585033301,-189.14594925,0.0001715,2]
[319170953,1710585033310,-3224.45045373,0.00017152,2]
[319170955,1710585033321,-217.445043,0.00017161,2]
[319170957,1710585033330,-7371.3396322,0.00017702,2]
[319170959,1710585033339,-5072.73133459,0.00018,10]
[319170961,1710585033347,-200.323371,0.00018514,2]
[319170963,1710585033356,-199.4294531,0.000186,2]
[319170970,1710585033464,-6262.09989842,0.00018689,2]
[319170972,1710585033476,-201.1557499,0.000187,2]
[319170973,1710585033486,-201.1557499,0.000187,2]
[319170975,1710585033495,-687.38054693,0.00018789,2]
[319170977,1710585033505,-728.2765095,0.00018789,2]
[319170978,1710585033514,-15712.41904849,0.000188,5]
[319170979,1710585033524,-1000.0,0.00018826,2]
[319170980,1710585033533,-277.92339272,0.00018841,2]
[319170981,1710585033543,-1000.0,0.00018882,2]
[319170982,1710585033552,-187.47843617,0.00018889,2]
[319170983,1710585033561,-3561.03188096,0.00018889,2]
[319170984,1710585033573,-170.97213188,0.00018889,2]
[319170985,1710585033582,-1000.0,0.00018889,2]
[319170986,1710585033591,-1000.0,0.00018961,2]
[319170987,1710585033600,-181.683257,0.00018976,2]
[319170988,1710585033610,-414.178488,0.00018976,2]
[319170989,1710585033620,-162.014705,0.00018976,2]
[319170990,1710585033629,-407.743806,0.00018976,2]
[319170991,1710585033638,-168.767988,0.00018976,2]
[319170992,1710585033647,-281.57541011,0.00018986,2]
[319170993,1710585033656,-295.78011943,0.00018987,2]
[319170994,1710585033666,-270.37356748,0.00018987,2]
[319170995,1710585033675,-1864.2981738,0.00018987,2]
[319170996,1710585033685,-12400.55782307,0.00018987,2]
[319170997,1710585033694,-155.16447434,0.00018987,2]
[319170998,1710585033704,-4195.67339406,0.00018987,2]
[319170999,1710585033714,-151.0,0.00018988,2]
[319171000,1710585033723,-151.0,0.00018988,2]
[319171001,1710585033732,-290.095453,0.00018988,2]
[319171002,1710585033741,-155.49623241,0.00018988,2]
[319171003,1710585033750,-276.82806298,0.00018988,2]
[319171004,1710585033760,-151.0,0.00018989,2]
[319171005,1710585033769,-152.045424,0.00018989,2]
[319171006,1710585033779,-151.0,0.00018989,2]
[319171007,1710585033788,-151.0,0.00018989,2]
[319171008,1710585033798,-151.0,0.00018989,2]
[319171009,1710585033807,-151.0,0.00018989,2]
[319171010,1710585033818,-151.0,0.00018989,2]
[319171011,1710585033827,-151.0,0.00018989,2]
[319171012,1710585033837,-151.0,0.00018989,2]
[319171013,1710585033846,-151.0,0.00018989,2]
[319171014,1710585033855,-151.0,0.00018989,2]
[319171015,1710585033864,-151.0,0.00018989,2]
[319171016,1710585033873,-151.0,0.00018989,2]
[319171017,1710585033882,-277.159914,0.00018989,2]
[319171018,1710585033891,-151.0,0.00018989,2]
[319171019,1710585033900,-151.0,0.00018989,2]
[319171020,1710585033910,-151.0,0.00018989,2]
[319171021,1710585033919,-211.454357,0.00018989,2]
[319171022,1710585033929,-151.0,0.00018989,2]
[319171023,1710585033939,-151.0,0.00018989,2]
[319171024,1710585033948,-199.274212,0.00018989,2]
[319171025,1710585033957,-151.0,0.00018989,2]
[319171026,1710585033966,-153.116158,0.00018989,2]
[319171027,1710585033975,-245835.54963245,0.00018989,60]
[319171091,1710585038374,-3224.45045373,0.00017048,2]
[319171092,1710585038384,-6015.80276132,0.00018989,60]
[319171133,1710585041663,-2522.40981283,0.00018989,60]
[319171136,1710585041724,-6851.1,0.00018989,60]
[319171143,1710585041784,-311.20545213,0.00018989,60]
[319171279,1710585043387,-1899.10679402,0.00018989,60]
[319171280,1710585043399,-26908.88572041,0.00018989,60]
[319171283,1710585043452,-392.54000003,0.00018989,60]
[319171294,1710585043563,-25166.79158827,0.00018989,60]
[319171549,1710585046440,-185.54118178,0.00018988,2]
[319171551,1710585046450,-160.59923582,0.00018988,2]
[319171553,1710585046459,-1724.3607624,0.00018989,60]
[319176601,1710586232580,-160.59923582,0.00017138,2]
[319176603,1710586232589,-3431.50690938,0.00017139,2]
[319176605,1710586232598,-3147.88054941,0.0001714,2]
[319176607,1710586232607,-1569.93031636,0.00017141,2]
[319176609,1710586232616,-189.14594925,0.00017313,2]
[319176611,1710586232625,-1569.93031636,0.00017314,2]
[319176613,1710586232634,-1672.72758336,0.00017317,2]
[319176615,1710586232643,-250.0,0.00017446,2]
[319176617,1710586232652,-233.110324,0.000175,2]
[319176619,1710586232661,-1133.1890572,0.00017566,2]
[319176620,1710586232670,-170.97213188,0.00018795,2]
[319176622,1710586232683,-9435.35562439,0.00018889,2]
[319176624,1710586232734,-284.51445716,0.00018895,2]
[319176626,1710586232743,-170.97213188,0.00018895,2]
[319176629,1710586232754,-1000.0,0.00018895,2]
[319176631,1710586232765,-1914.10279864,0.00018987,2]
[319176633,1710586232775,-339.62203075,0.00018988,2]
[319176634,1710586232785,-1960.98190956,0.00018988,2]
[319176637,1710586232795,-209.10050592,0.00018993,2]
[319176638,1710586232807,-47168.91231114,0.00018995,60]
[319176641,1710586232820,-639.31184866,0.00018995,60]
[319176698,1710586238511,-3941.3,0.00018995,60]
[319176700,1710586238622,-557.92484868,0.00018995,60]
[319176769,1710586243671,-394.39999992,0.00018994,2]
[319176778,1710586243735,-3037.10690946,0.00018994,2]
[319176780,1710586243745,-71339.68621814,0.00018995,60]
[319177071,1710586728295,67159.0,0.0001,2]
[319177119,1710587434527,-204.89534336,0.00016113,2]
[319177121,1710587434536,-1081.84484016,0.00016114,2]
[319177123,1710587434545,-3147.88054941,0.00016114,2]
[319177125,1710587434555,-404.89614019,0.00016115,2]
[319177127,1710587434564,-3431.50690938,0.00016115,2]
[319177129,1710587434573,-320.50917067,0.00016116,2]
[319177131,1710587434582,-156.11682561,0.00016116,2]
[319177133,1710587434591,-3501.96135875,0.00016116,2]
[319177135,1710587434600,-429.64123209,0.00016117,2]
[319177137,1710587434609,-518.08197293,0.00016117,2]
[319177139,1710587434619,-179.88530837,0.00016117,2]
[319177141,1710587434628,-1607.97410816,0.00016118,2]
[319177143,1710587434639,-524.9782633,0.00016119,2]
[319177144,1710587434648,-2117.10922945,0.0001612,2]
[319177145,1710587434657,-155.16602765,0.0001612,2]
[319177146,1710587434667,-395.76342828,0.00016122,2]
[319177147,1710587434676,-160.59923582,0.00016283,2]
[319177148,1710587434686,-829.6884,0.00016285,2]
[319177149,1710587434695,-494.44138683,0.000164,2]
[319177150,1710587434705,-180.316584,0.00016808,2]
[319177151,1710587434715,-394.7914371,0.00016809,2]
[319177152,1710587434724,-9981.1356561,0.00017185,2]
[319177153,1710587434733,-2490.13193463,0.00018,2]
[319177154,1710587434742,-418.36794336,0.00018798,2]
[319177156,1710587434752,-159.41858964,0.0001881,2]
[319177158,1710587434761,-2605.99595975,0.00018893,2]
[319177160,1710587434770,-302.13291312,0.00018895,2]
[319177162,1710587434780,-1000.0,0.00018897,2]
[319177164,1710587434790,-418.6872548,0.000189,2]
[319177166,1710587434802,-15013.86971601,0.00018993,2]
[319177258,1710587438682,-208.51873465,0.00016113,2]
[319177260,1710587438692,-2274.9459232,0.00018993,2]
[319177737,1710587446767,-347.90927345,0.00018993,2]
[319177740,1710587446779,-2116.62066321,0.00018993,2]
[319179941,1710588632121,-155.16447434,0.00015218,2]